[Event "Titled Tuesday Blitz December 27 Early 2022"]
[White "Najdin, Danil"]
[Black "Borrmann, Laurenz"]
[WhiteFideId "4172426"]
[BlackFideId "312187930"]
[WhiteElo "2235"]
[BlackElo "2304"]
[Result "0-1"]
[Round "09"]
[TimeControl "180+2"]
[Date "2022.12.27"]
[WhiteClock "0:00:02"]
[BlackClock "0:00:07"]

1. e4 {[%clk 0:03:00]}  c6 {[%clk 0:02:38]} 2. d4 {[%clk 0:02:38]}  d5 {[%clk 0:02:36]} 3. exd5 {[%clk 0:02:38]}  cxd5 {[%clk 0:02:35]} 4. Bd3 {[%clk 0:02:39]}  Nf6 {[%clk 0:02:34]} 5. c3 {[%clk 0:02:38]}  Bg4 {[%clk 0:02:32]} 6. Qb3 {[%clk 0:02:35]}  Qc7 {[%clk 0:02:32]} 7. g3 {[%clk 0:02:18]}  Nc6 {[%clk 0:02:14]} 8. Bf4 {[%clk 0:02:17]}  e5 {[%clk 0:01:29]} 9. dxe5 {[%clk 0:02:15]}  Nxe5 {[%clk 0:01:27]} 10. Bb5+ {[%clk 0:02:04]}  Bd7 {[%clk 0:01:06]} 11. Nd2 {[%clk 0:02:02]}  Bd6 {[%clk 0:01:02]} 12. Bxe5 {[%clk 0:01:58]}  Bxe5 {[%clk 0:01:02]} 13. Ngf3 {[%clk 0:01:59]}  O-O {[%clk 0:00:59]} 14. O-O {[%clk 0:01:54]}  Bh3 {[%clk 0:00:54]} 15. Rfe1 {[%clk 0:01:54]}  Bd6 {[%clk 0:00:54]} 16. Bf1 {[%clk 0:01:49]}  Bg4 {[%clk 0:00:47]} 17. Nd4 {[%clk 0:01:47]}  Bc5 {[%clk 0:00:45]} 18. Bg2 {[%clk 0:01:25]}  Rad8 {[%clk 0:00:40]} 19. h3 {[%clk 0:00:58]}  Bh5 {[%clk 0:00:37]} 20. Bf3 {[%clk 0:00:49]}  Bg6 {[%clk 0:00:32]} 21. Kg2 {[%clk 0:00:46]}  h5 {[%clk 0:00:29]} 22. h4 {[%clk 0:00:42]}  Rfe8 {[%clk 0:00:28]} 23. Qa4 {[%clk 0:00:42]}  a6 {[%clk 0:00:21]} 24. N4b3 {[%clk 0:00:26]}  Ba7 {[%clk 0:00:18]} 25. Qa5 {[%clk 0:00:20]}  Qc8 {[%clk 0:00:14]} 26. Nd4 {[%clk 0:00:14]}  Ne4 {[%clk 0:00:13]} 27. Rad1 {[%clk 0:00:08]}  Bb8 {[%clk 0:00:08]} 28. N2b3 {[%clk 0:00:06]}  Bc7 {[%clk 0:00:08]} 29. Qb4 {[%clk 0:00:05]}  Qb8 {[%clk 0:00:08]} 30. Na5 {[%clk 0:00:03]}  Bxg3 {[%clk 0:00:04]} 31. Qxb7 {[%clk 0:00:02]}  Bc7 {[%clk 0:00:03]} 32. Qxb8 {[%clk 0:00:02]}  Bxb8 {[%clk 0:00:03]} 33. Nac6 {[%clk 0:00:02]}  Rc8 {[%clk 0:00:03]} 34. Nxb8 {[%clk 0:00:03]}  Rxb8 {[%clk 0:00:04]} 35. Re2 {[%clk 0:00:02]}  a5 {[%clk 0:00:03]} 36. Nc6 {[%clk 0:00:02]}  Ra8 {[%clk 0:00:03]} 37. Rxd5 {[%clk 0:00:02]}  Nf6 {[%clk 0:00:03]} 38. Rxe8+ {[%clk 0:00:01]}  Rxe8 {[%clk 0:00:04]} 39. Rxa5 {[%clk 0:00:02]}  Kh7 {[%clk 0:00:02]} 40. Nd4 {[%clk 0:00:02]}  Ne4 {[%clk 0:00:02]} 41. Bxe4 {[%clk 0:00:01]}  Rxe4 {[%clk 0:00:03]} 42. Kg3 {[%clk 0:00:02]}  Rg4+ {[%clk 0:00:03]} 43. Kf3 {[%clk 0:00:02]}  Rxh4 {[%clk 0:00:03]} 44. Kg3 {[%clk 0:00:02]}  Rg4+ {[%clk 0:00:03]} 45. Kf3 {[%clk 0:00:03]}  Rg1 {[%clk 0:00:03]} 46. b4 {[%clk 0:00:04]}  h4 {[%clk 0:00:04]} 47. Rc5 {[%clk 0:00:03]}  h3 {[%clk 0:00:04]} 48. Ne2 {[%clk 0:00:03]}  h2 {[%clk 0:00:04]} 49. Ng3 {[%clk 0:00:02]}  Rxg3+ {[%clk 0:00:05]} 50. fxg3 {[%clk 0:00:02]}  h1=Q+ {[%clk 0:00:06]} 51. Ke3 {[%clk 0:00:02]}  Qe4+ {[%clk 0:00:05]} 52. Kf2 {[%clk 0:00:03]}  Bf5 {[%clk 0:00:05]} 53. a4 {[%clk 0:00:03]}  Bg4 {[%clk 0:00:06]} 54. Kf1 {[%clk 0:00:01]}  Qf3+ {[%clk 0:00:06]} 55. Kg1 {[%clk 0:00:01]}  Qxg3+ {[%clk 0:00:06]} 56. Kf1 {[%clk 0:00:02]}  Qf3+ {[%clk 0:00:07]} 57. Kg1 {[%clk 0:00:02]}  Bh3 {[%clk 0:00:07]} 58. Rg5 {[%clk 0:00:02]}  Qe3+ {[%clk 0:00:07]} 0-1


[Site "https://www.chess.com"]

[Event "Titled Tuesday Blitz December 27 Early 2022"]
[White "Oparin, Grigoriy"]
[Black "Samsonkin, Artiom"]
[WhiteFideId "24125890"]
[BlackFideId "13503111"]
[WhiteElo "2667"]
[BlackElo "2420"]
[Result "1-0"]
[Round "09"]
[TimeControl "180+2"]
[Date "2022.12.27"]
[WhiteClock "0:00:05"]
[BlackClock "0:00:02"]

1. e4 {[%clk 0:03:00]}  c5 {[%clk 0:02:56]} 2. Nf3 {[%clk 0:03:00]}  d6 {[%clk 0:02:55]} 3. d4 {[%clk 0:03:00]}  cxd4 {[%clk 0:02:56]} 4. Nxd4 {[%clk 0:03:01]}  Nf6 {[%clk 0:02:56]} 5. Nc3 {[%clk 0:03:01]}  a6 {[%clk 0:02:57]} 6. a4 {[%clk 0:03:02]}  g6 {[%clk 0:02:56]} 7. g3 {[%clk 0:03:02]}  Bg7 {[%clk 0:02:57]} 8. Bg2 {[%clk 0:03:02]}  O-O {[%clk 0:02:58]} 9. h3 {[%clk 0:03:01]}  Nc6 {[%clk 0:02:58]} 10. Be3 {[%clk 0:03:01]}  Bd7 {[%clk 0:02:54]} 11. O-O {[%clk 0:03:01]}  Rc8 {[%clk 0:02:41]} 12. Qd2 {[%clk 0:03:01]}  Qc7 {[%clk 0:02:17]} 13. Nxc6 {[%clk 0:02:37]}  Bxc6 {[%clk 0:02:16]} 14. Bd4 {[%clk 0:02:33]}  Nd7 {[%clk 0:02:07]} 15. Bxg7 {[%clk 0:02:29]}  Kxg7 {[%clk 0:02:08]} 16. Kh2 {[%clk 0:02:27]}  Ne5 {[%clk 0:02:02]} 17. a5 {[%clk 0:02:25]}  Bb5 {[%clk 0:01:49]} 18. Nxb5 {[%clk 0:02:19]}  axb5 {[%clk 0:01:50]} 19. c3 {[%clk 0:02:19]}  Nc4 {[%clk 0:01:50]} 20. Qe2 {[%clk 0:02:09]}  Qc5 {[%clk 0:01:45]} 21. Rfd1 {[%clk 0:02:04]}  e6 {[%clk 0:01:39]} 22. Rd4 {[%clk 0:01:28]}  b4 {[%clk 0:01:35]} 23. Bf1 {[%clk 0:01:00]}  d5 {[%clk 0:01:18]} 24. exd5 {[%clk 0:00:58]}  exd5 {[%clk 0:01:18]} 25. Rad1 {[%clk 0:00:45]}  Rfe8 {[%clk 0:01:13]} 26. Qc2 {[%clk 0:00:45]}  bxc3 {[%clk 0:01:06]} 27. Rxd5 {[%clk 0:00:41]}  Qa7 {[%clk 0:00:30]} 28. Qxc3+ {[%clk 0:00:41]}  Ne5 {[%clk 0:00:30]} 29. Qd4 {[%clk 0:00:19]}  Qxd4 {[%clk 0:00:29]} 30. R5xd4 {[%clk 0:00:20]}  Nf3+ {[%clk 0:00:30]} 31. Kg2 {[%clk 0:00:20]}  Nxd4 {[%clk 0:00:31]} 32. Rxd4 {[%clk 0:00:20]}  Rc2 {[%clk 0:00:19]} 33. b4 {[%clk 0:00:19]}  Rb2 {[%clk 0:00:15]} 34. b5 {[%clk 0:00:20]}  Ra8 {[%clk 0:00:09]} 35. a6 {[%clk 0:00:10]}  bxa6 {[%clk 0:00:10]} 36. bxa6 {[%clk 0:00:11]}  Ra2 {[%clk 0:00:10]} 37. Rd6 {[%clk 0:00:10]}  Ra7 {[%clk 0:00:09]} 38. Bc4 {[%clk 0:00:09]}  Ra4 {[%clk 0:00:09]} 39. Be2 {[%clk 0:00:09]}  Ra2 {[%clk 0:00:09]} 40. Kf3 {[%clk 0:00:08]}  Kf8 {[%clk 0:00:08]} 41. Rb6 {[%clk 0:00:07]}  Ra3+ {[%clk 0:00:07]} 42. Kg2 {[%clk 0:00:07]}  Ke7 {[%clk 0:00:07]} 43. Bc4 {[%clk 0:00:05]}  Kf8 {[%clk 0:00:03]} 44. Rb8+ {[%clk 0:00:04]}  Kg7 {[%clk 0:00:03]} 45. Rb7 {[%clk 0:00:05]}  R7xa6 {[%clk 0:00:03]} 46. Rxf7+ {[%clk 0:00:05]}  Kh6 {[%clk 0:00:04]} 47. Bxa6 {[%clk 0:00:04]}  Rxa6 {[%clk 0:00:05]} 48. Rf4 {[%clk 0:00:04]}  Rc6 {[%clk 0:00:05]} 49. h4 {[%clk 0:00:05]}  Kg7 {[%clk 0:00:06]} 50. Re4 {[%clk 0:00:05]}  Rb6 {[%clk 0:00:06]} 51. g4 {[%clk 0:00:06]}  Rb7 {[%clk 0:00:06]} 52. Kg3 {[%clk 0:00:06]}  Rb3+ {[%clk 0:00:06]} 53. f3 {[%clk 0:00:06]}  Rb7 {[%clk 0:00:07]} 54. Re5 {[%clk 0:00:07]}  Rd7 {[%clk 0:00:07]} 55. h5 {[%clk 0:00:07]}  Rc7 {[%clk 0:00:08]} 56. Kh4 {[%clk 0:00:07]}  Rf7 {[%clk 0:00:07]} 57. Re3 {[%clk 0:00:07]}  Rc7 {[%clk 0:00:07]} 58. Rd3 {[%clk 0:00:06]}  Rb7 {[%clk 0:00:08]} 59. Rd4 {[%clk 0:00:05]}  Rc7 {[%clk 0:00:07]} 60. f4 {[%clk 0:00:06]}  Re7 {[%clk 0:00:07]} 61. g5 {[%clk 0:00:06]}  Rf7 {[%clk 0:00:07]} 62. h6+ {[%clk 0:00:05]}  Kf8 {[%clk 0:00:08]} 63. Kg4 {[%clk 0:00:06]}  Ke7 {[%clk 0:00:05]} 64. Ra4 {[%clk 0:00:05]}  Ke6 {[%clk 0:00:03]} 65. Ra6+ {[%clk 0:00:05]}  Kd5 {[%clk 0:00:04]} 66. Ra8 {[%clk 0:00:04]}  Ke4 {[%clk 0:00:04]} 67. Re8+ {[%clk 0:00:04]}  Kd4 {[%clk 0:00:05]} 68. Rg8 {[%clk 0:00:05]}  Ke4 {[%clk 0:00:05]} 69. Re8+ {[%clk 0:00:05]}  Kd4 {[%clk 0:00:05]} 70. Kf3 {[%clk 0:00:05]}  Rb7 {[%clk 0:00:04]} 71. Rd8+ {[%clk 0:00:06]}  Kc4 {[%clk 0:00:04]} 72. Rg8 {[%clk 0:00:05]}  Rb3+ {[%clk 0:00:02]} 73. Ke4 {[%clk 0:00:05]} 1-0


[Site "https://www.chess.com"]

[Event "Titled Tuesday Blitz December 27 Early 2022"]
[White "Oro, Faustino"]
[Black "Postnikov, Artem"]
[WhiteFideId "20000197"]
[BlackFideId "34153575"]
[WhiteElo "2269"]
[BlackElo "2197"]
[Result "1-0"]
[Round "09"]
[TimeControl "180+2"]
[Date "2022.12.27"]
[WhiteClock "0:00:06"]
[BlackClock "0:00:01"]

1. e4 {[%clk 0:03:00]}  c6 {[%clk 0:02:59]} 2. d4 {[%clk 0:03:00]}  d5 {[%clk 0:02:59]} 3. e5 {[%clk 0:03:01]}  Bf5 {[%clk 0:02:59]} 4. h4 {[%clk 0:03:00]}  h5 {[%clk 0:02:59]} 5. Bd3 {[%clk 0:03:00]}  Bxd3 {[%clk 0:02:57]} 6. Qxd3 {[%clk 0:03:01]}  e6 {[%clk 0:02:57]} 7. Nf3 {[%clk 0:03:01]}  Be7 {[%clk 0:02:51]} 8. Nbd2 {[%clk 0:02:48]}  Nh6 {[%clk 0:02:51]} 9. O-O {[%clk 0:02:48]}  Nf5 {[%clk 0:02:50]} 10. g3 {[%clk 0:02:47]}  c5 {[%clk 0:02:40]} 11. dxc5 {[%clk 0:02:41]}  Bxc5 {[%clk 0:02:37]} 12. Kg2 {[%clk 0:02:39]}  Nc6 {[%clk 0:02:33]} 13. Nb3 {[%clk 0:02:37]}  Be7 {[%clk 0:02:16]} 14. Bf4 {[%clk 0:02:21]}  Rc8 {[%clk 0:02:12]} 15. a3 {[%clk 0:02:14]}  O-O {[%clk 0:02:08]} 16. Rad1 {[%clk 0:02:08]}  Qb6 {[%clk 0:02:02]} 17. Rfe1 {[%clk 0:01:52]}  a5 {[%clk 0:02:01]} 18. Nbd2 {[%clk 0:01:16]}  a4 {[%clk 0:01:52]} 19. c4 {[%clk 0:01:09]}  Rfd8 {[%clk 0:01:41]} 20. cxd5 {[%clk 0:01:08]}  Rxd5 {[%clk 0:01:40]} 21. Qb1 {[%clk 0:01:09]}  Rcd8 {[%clk 0:01:32]} 22. Ne4 {[%clk 0:00:53]}  Rxd1 {[%clk 0:01:28]} 23. Rxd1 {[%clk 0:00:53]}  Rxd1 {[%clk 0:01:28]} 24. Qxd1 {[%clk 0:00:54]}  Qxb2 {[%clk 0:01:25]} 25. Qd7 {[%clk 0:00:52]}  Qxa3 {[%clk 0:00:26]} 26. Qe8+ {[%clk 0:00:45]}  Bf8 {[%clk 0:00:25]} 27. Nd6 {[%clk 0:00:44]}  Nxd6 {[%clk 0:00:20]} 28. exd6 {[%clk 0:00:44]}  Qd3 {[%clk 0:00:18]} 29. d7 {[%clk 0:00:40]}  a3 {[%clk 0:00:18]} 30. Ne5 {[%clk 0:00:15]}  Qd5+ {[%clk 0:00:18]} 31. Kh2 {[%clk 0:00:14]}  Nd8 {[%clk 0:00:03]} 32. Qxd8 {[%clk 0:00:13]}  a2 {[%clk 0:00:03]} 33. Qa8 {[%clk 0:00:12]}  Qd4 {[%clk 0:00:01]} 34. Be3 {[%clk 0:00:06]} 1-0


[Site "https://www.chess.com"]

[Event "Titled Tuesday Blitz December 27 Early 2022"]
[White "Osinovsky, Stepan"]
[Black "Aghasiyev, Kamal"]
[WhiteFideId "4157354"]
[BlackFideId "13402854"]
[WhiteElo "2241"]
[BlackElo "2441"]
[Result "1-0"]
[Round "09"]
[TimeControl "180+2"]
[Date "2022.12.27"]
[WhiteClock "0:01:11"]
[BlackClock "0:02:02"]

1. Nf3 {[%clk 0:02:53]}  d5 {[%clk 0:02:49]} 2. g3 {[%clk 0:02:51]}  Nf6 {[%clk 0:02:47]} 3. Bg2 {[%clk 0:02:52]}  b6 {[%clk 0:02:43]} 4. O-O {[%clk 0:02:53]}  Bb7 {[%clk 0:02:43]} 5. d3 {[%clk 0:02:49]}  g6 {[%clk 0:02:42]} 6. Nbd2 {[%clk 0:02:50]}  Bg7 {[%clk 0:02:42]} 7. e4 {[%clk 0:02:50]}  dxe4 {[%clk 0:02:36]} 8. Ng5 {[%clk 0:02:49]}  O-O {[%clk 0:02:36]} 9. Ngxe4 {[%clk 0:02:46]}  Qc8 {[%clk 0:02:30]} 10. Re1 {[%clk 0:02:42]}  c5 {[%clk 0:02:29]} 11. a4 {[%clk 0:02:38]}  Nc6 {[%clk 0:02:27]} 12. c3 {[%clk 0:02:24]}  Qd7 {[%clk 0:02:26]} 13. Nc4 {[%clk 0:01:48]}  Rad8 {[%clk 0:02:19]} 14. Qb3 {[%clk 0:01:33]}  Qxd3 {[%clk 0:02:14]} 15. Nxc5 {[%clk 0:01:27]}  Na5 {[%clk 0:02:06]} 16. Nxa5 {[%clk 0:01:21]}  bxc5 {[%clk 0:02:02]} 17. Qxb7 {[%clk 0:01:11]} 1-0


[Site "https://www.chess.com"]

[Event "Titled Tuesday Blitz December 27 Early 2022"]
[White "Petrovic, Aleksa"]
[Black "Ilkhomi, Jaloliddin"]
[WhiteFideId "967629"]
[BlackFideId "14700948"]
[WhiteElo "2332"]
[BlackElo "1997"]
[Result "0-1"]
[Round "09"]
[TimeControl "180+2"]
[Date "2022.12.27"]
[WhiteClock "0:00:27"]
[BlackClock "0:00:17"]

1. d4 {[%clk 0:02:55]}  Nf6 {[%clk 0:02:59]} 2. c4 {[%clk 0:02:50]}  e6 {[%clk 0:02:59]} 3. Nf3 {[%clk 0:02:49]}  Bb4+ {[%clk 0:02:59]} 4. Nbd2 {[%clk 0:02:48]}  O-O {[%clk 0:02:58]} 5. g3 {[%clk 0:02:47]}  b6 {[%clk 0:02:58]} 6. Bg2 {[%clk 0:02:47]}  Bb7 {[%clk 0:02:58]} 7. O-O {[%clk 0:02:47]}  d5 {[%clk 0:02:59]} 8. cxd5 {[%clk 0:02:46]}  exd5 {[%clk 0:02:55]} 9. Ne5 {[%clk 0:02:46]}  Nbd7 {[%clk 0:02:55]} 10. Nd3 {[%clk 0:02:39]}  Bd6 {[%clk 0:02:54]} 11. Nf3 {[%clk 0:02:39]}  Ne4 {[%clk 0:02:53]} 12. Bf4 {[%clk 0:02:39]}  Bxf4 {[%clk 0:02:49]} 13. Nxf4 {[%clk 0:02:38]}  Qe7 {[%clk 0:02:42]} 14. Rc1 {[%clk 0:02:34]}  Rac8 {[%clk 0:02:41]} 15. Qa4 {[%clk 0:02:27]}  a5 {[%clk 0:02:34]} 16. Bh3 {[%clk 0:02:25]}  f5 {[%clk 0:02:23]} 17. Nd3 {[%clk 0:02:13]}  c5 {[%clk 0:02:08]} 18. dxc5 {[%clk 0:02:10]}  Ndxc5 {[%clk 0:02:05]} 19. Qa3 {[%clk 0:01:51]}  Qd6 {[%clk 0:01:28]} 20. Rfd1 {[%clk 0:01:43]}  Nxd3 {[%clk 0:01:22]} 21. Qxd3 {[%clk 0:01:19]}  Rxc1 {[%clk 0:01:02]} 22. Rxc1 {[%clk 0:01:18]}  g6 {[%clk 0:00:45]} 23. Qd4 {[%clk 0:01:06]}  Re8 {[%clk 0:00:41]} 24. Ne1 {[%clk 0:01:00]}  Nc5 {[%clk 0:00:39]} 25. Nd3 {[%clk 0:00:55]}  Rxe2 {[%clk 0:00:30]} 26. Nxc5 {[%clk 0:00:48]}  bxc5 {[%clk 0:00:31]} 27. Rxc5 {[%clk 0:00:48]}  Re1+ {[%clk 0:00:29]} 28. Kg2 {[%clk 0:00:44]}  Re4 {[%clk 0:00:27]} 29. Qc3 {[%clk 0:00:35]}  Rc4 {[%clk 0:00:22]} 30. Rxc4 {[%clk 0:00:27]}  d4+ {[%clk 0:00:17]} 0-1


[Site "https://www.chess.com"]

[Event "Titled Tuesday Blitz December 27 Early 2022"]
[White "Poeta, Caio Medeiros"]
[Black "Csonka, Balazs"]
[WhiteFideId "2142660"]
[BlackFideId "742910"]
[WhiteElo "2088"]
[BlackElo "2496"]
[Result "0-1"]
[Round "09"]
[TimeControl "180+2"]
[Date "2022.12.27"]
[WhiteClock "0:00:45"]
[BlackClock "0:00:03"]

1. d4 {[%clk 0:03:00]}  Nf6 {[%clk 0:02:58]} 2. c4 {[%clk 0:03:01]}  g6 {[%clk 0:02:56]} 3. Nc3 {[%clk 0:03:00]}  Bg7 {[%clk 0:02:56]} 4. e4 {[%clk 0:03:00]}  O-O {[%clk 0:02:57]} 5. f3 {[%clk 0:03:01]}  Nc6 {[%clk 0:02:56]} 6. Be3 {[%clk 0:02:59]}  e5 {[%clk 0:02:56]} 7. Nge2 {[%clk 0:02:59]}  Re8 {[%clk 0:02:17]} 8. Qd2 {[%clk 0:02:57]}  d6 {[%clk 0:01:46]} 9. d5 {[%clk 0:02:53]}  Na5 {[%clk 0:01:25]} 10. Nc1 {[%clk 0:02:49]}  c5 {[%clk 0:01:20]} 11. dxc6 {[%clk 0:02:38]}  bxc6 {[%clk 0:01:11]} 12. Be2 {[%clk 0:02:38]}  Be6 {[%clk 0:01:10]} 13. b3 {[%clk 0:02:37]}  d5 {[%clk 0:01:09]} 14. cxd5 {[%clk 0:02:37]}  cxd5 {[%clk 0:01:10]} 15. exd5 {[%clk 0:02:37]}  Nxd5 {[%clk 0:01:09]} 16. Nxd5 {[%clk 0:02:37]}  Qxd5 {[%clk 0:00:58]} 17. Qxd5 {[%clk 0:02:34]}  Bxd5 {[%clk 0:00:59]} 18. Rb1 {[%clk 0:02:24]}  e4 {[%clk 0:00:41]} 19. Kf2 {[%clk 0:02:20]}  exf3 {[%clk 0:00:38]} 20. Bxf3 {[%clk 0:02:21]}  Bxf3 {[%clk 0:00:38]} 21. Kxf3 {[%clk 0:02:21]}  Rad8 {[%clk 0:00:26]} 22. Bxa7 {[%clk 0:02:21]}  Nc6 {[%clk 0:00:26]} 23. Bb6 {[%clk 0:02:11]}  Rd2 {[%clk 0:00:22]} 24. Rf1 {[%clk 0:01:50]}  h5 {[%clk 0:00:15]} 25. h3 {[%clk 0:01:41]}  g5 {[%clk 0:00:15]} 26. Rf2 {[%clk 0:01:22]}  g4+ {[%clk 0:00:08]} 27. hxg4 {[%clk 0:01:21]}  hxg4+ {[%clk 0:00:09]} 28. Kxg4 {[%clk 0:01:19]}  Rd1 {[%clk 0:00:08]} 29. b4 {[%clk 0:01:11]}  Ree1 {[%clk 0:00:06]} 30. Rc2 {[%clk 0:01:07]}  Ne5+ {[%clk 0:00:07]} 31. Kf4 {[%clk 0:01:06]}  Bh6+ {[%clk 0:00:06]} 32. Kg3 {[%clk 0:01:05]}  Bxc1 {[%clk 0:00:05]} 33. Bf2 {[%clk 0:00:48]}  Rd3+ {[%clk 0:00:03]} 34. Kh4 {[%clk 0:00:45]}  Re4+ {[%clk 0:00:03]} 35. g4 {[%clk 0:00:44]}  Rxg4+ {[%clk 0:00:02]} 36. Kh5 {[%clk 0:00:45]}  Rh3+ {[%clk 0:00:03]} 37. Bh4 {[%clk 0:00:45]}  Rhxh4# {[%clk 0:00:03]} 0-1


[Site "https://www.chess.com"]

[Event "Titled Tuesday Blitz December 27 Early 2022"]
[White "Potapova, Margarita"]
[Black "Dimitrov, Atanas"]
[WhiteFideId "14126869"]
[BlackFideId "2901315"]
[WhiteElo "2104"]
[BlackElo "2269"]
[Result "1-0"]
[Round "09"]
[TimeControl "180+2"]
[Date "2022.12.27"]
[WhiteClock "0:00:48"]
[BlackClock "0:00:16"]

1. d4 {[%clk 0:02:59]}  Nf6 {[%clk 0:02:59]} 2. c4 {[%clk 0:02:59]}  g6 {[%clk 0:02:59]} 3. Nc3 {[%clk 0:02:59]}  d5 {[%clk 0:02:59]} 4. cxd5 {[%clk 0:02:59]}  Nxd5 {[%clk 0:03:00]} 5. e4 {[%clk 0:02:58]}  Nxc3 {[%clk 0:03:01]} 6. bxc3 {[%clk 0:02:59]}  Bg7 {[%clk 0:03:01]} 7. Be3 {[%clk 0:03:00]}  O-O {[%clk 0:03:01]} 8. Nf3 {[%clk 0:03:00]}  c5 {[%clk 0:03:02]} 9. Be2 {[%clk 0:03:01]}  cxd4 {[%clk 0:03:01]} 10. cxd4 {[%clk 0:03:01]}  Nc6 {[%clk 0:03:01]} 11. Rc1 {[%clk 0:03:00]}  Bg4 {[%clk 0:02:59]} 12. d5 {[%clk 0:02:58]}  Bxf3 {[%clk 0:02:59]} 13. gxf3 {[%clk 0:02:46]}  Ne5 {[%clk 0:02:44]} 14. f4 {[%clk 0:02:42]}  Nd7 {[%clk 0:02:45]} 15. O-O {[%clk 0:02:40]}  Nf6 {[%clk 0:02:41]} 16. Bf3 {[%clk 0:02:35]}  Qa5 {[%clk 0:02:36]} 17. e5 {[%clk 0:02:30]}  Nd7 {[%clk 0:02:30]} 18. Qb3 {[%clk 0:02:28]}  Nb6 {[%clk 0:02:14]} 19. Rc5 {[%clk 0:02:18]}  Qa6 {[%clk 0:02:10]} 20. Rfc1 {[%clk 0:01:58]}  Rfd8 {[%clk 0:01:56]} 21. Rc7 {[%clk 0:01:54]}  Rac8 {[%clk 0:01:29]} 22. d6 {[%clk 0:01:48]}  Rxc7 {[%clk 0:01:17]} 23. Rxc7 {[%clk 0:01:49]}  Rf8 {[%clk 0:00:46]} 24. Rxe7 {[%clk 0:01:09]}  Nc8 {[%clk 0:00:35]} 25. Rxf7 {[%clk 0:00:52]}  Rxf7 {[%clk 0:00:31]} 26. d7 {[%clk 0:00:51]}  Ne7 {[%clk 0:00:16]} 27. d8=Q+ {[%clk 0:00:51]}  Bf8 {[%clk 0:00:16]} 28. Qe8 {[%clk 0:00:48]} 1-0


[Site "https://www.chess.com"]

[Event "Titled Tuesday Blitz December 27 Early 2022"]
[White "Ronka, Erik"]
[Black "Legenia, Artem"]
[WhiteFideId "505080"]
[BlackFideId "14136945"]
[WhiteElo "2276"]
[BlackElo "2092"]
[Result "1-0"]
[Round "09"]
[TimeControl "180+2"]
[Date "2022.12.27"]
[WhiteClock "0:02:02"]
[BlackClock "0:02:13"]

1. d4 {[%clk 0:03:00]}  d5 {[%clk 0:02:56]} 2. Nf3 {[%clk 0:03:00]}  Nf6 {[%clk 0:02:55]} 3. g3 {[%clk 0:03:00]}  e6 {[%clk 0:02:55]} 4. Bg2 {[%clk 0:03:00]}  Nbd7 {[%clk 0:02:44]} 5. O-O {[%clk 0:03:01]}  b6 {[%clk 0:02:43]} 6. c4 {[%clk 0:03:01]}  Bb7 {[%clk 0:02:43]} 7. cxd5 {[%clk 0:02:59]}  exd5 {[%clk 0:02:43]} 8. Nc3 {[%clk 0:02:59]}  Be7 {[%clk 0:02:43]} 9. Bf4 {[%clk 0:02:59]}  a6 {[%clk 0:02:40]} 10. Rc1 {[%clk 0:02:56]}  O-O {[%clk 0:02:39]} 11. Qb3 {[%clk 0:02:38]}  c5 {[%clk 0:02:37]} 12. dxc5 {[%clk 0:02:38]}  Nxc5 {[%clk 0:02:33]} 13. Qd1 {[%clk 0:02:33]}  Nce4 {[%clk 0:02:30]} 14. Nd4 {[%clk 0:02:27]}  Rc8 {[%clk 0:02:17]} 15. Qd3 {[%clk 0:02:22]}  Nxc3 {[%clk 0:02:14]} 16. Rxc3 {[%clk 0:02:20]}  Ne4 {[%clk 0:02:14]} 17. Rxc8 {[%clk 0:02:17]}  Qxc8 {[%clk 0:02:13]} 18. Rc1 {[%clk 0:02:10]}  Qd7 {[%clk 0:02:13]} 19. Rc7 {[%clk 0:02:02]} 1-0


[Site "https://www.chess.com"]

[Event "Titled Tuesday Blitz December 27 Early 2022"]
[White "Rosh Jain"]
[Black "Orujov, Elshad"]
[WhiteFideId "25789465"]
[BlackFideId "13403540"]
[WhiteElo "2248"]
[BlackElo "2304"]
[Result "0-1"]
[Round "09"]
[TimeControl "180+2"]
[Date "2022.12.27"]
[WhiteClock "0:00:02"]
[BlackClock "0:01:03"]

1. e4 {[%clk 0:02:55]}  c5 {[%clk 0:02:58]} 2. Nf3 {[%clk 0:02:55]}  d6 {[%clk 0:02:58]} 3. d4 {[%clk 0:02:55]}  cxd4 {[%clk 0:02:59]} 4. Nxd4 {[%clk 0:02:56]}  Nf6 {[%clk 0:03:00]} 5. Nc3 {[%clk 0:02:57]}  a6 {[%clk 0:03:00]} 6. Bc4 {[%clk 0:02:56]}  e6 {[%clk 0:03:00]} 7. Bb3 {[%clk 0:02:56]}  Be7 {[%clk 0:02:59]} 8. O-O {[%clk 0:02:55]}  b5 {[%clk 0:03:00]} 9. Be3 {[%clk 0:02:53]}  O-O {[%clk 0:02:57]} 10. Qf3 {[%clk 0:02:52]}  Qc7 {[%clk 0:02:55]} 11. e5 {[%clk 0:02:43]}  Bb7 {[%clk 0:02:53]} 12. exf6 {[%clk 0:02:40]}  Bxf3 {[%clk 0:02:53]} 13. fxe7 {[%clk 0:02:40]}  Qxe7 {[%clk 0:02:52]} 14. Nxf3 {[%clk 0:02:38]}  Nd7 {[%clk 0:02:52]} 15. Rad1 {[%clk 0:02:34]}  Nc5 {[%clk 0:02:52]} 16. Bxc5 {[%clk 0:01:34]}  dxc5 {[%clk 0:02:49]} 17. a4 {[%clk 0:01:34]}  c4 {[%clk 0:02:41]} 18. Ba2 {[%clk 0:01:26]}  Rab8 {[%clk 0:02:31]} 19. axb5 {[%clk 0:01:24]}  axb5 {[%clk 0:02:29]} 20. Nd4 {[%clk 0:01:03]}  Qc5 {[%clk 0:02:17]} 21. Ne4 {[%clk 0:00:53]}  Qb6 {[%clk 0:01:57]} 22. c3 {[%clk 0:00:50]}  Rfd8 {[%clk 0:01:36]} 23. Bb1 {[%clk 0:00:48]}  b4 {[%clk 0:01:21]} 24. Nf3 {[%clk 0:00:30]}  Rxd1 {[%clk 0:01:15]} 25. Rxd1 {[%clk 0:00:22]}  bxc3 {[%clk 0:01:14]} 26. Nxc3 {[%clk 0:00:15]}  Qxb2 {[%clk 0:01:06]} 27. Nb5 {[%clk 0:00:04]}  Qxb5 {[%clk 0:01:04]} 28. Bc2 {[%clk 0:00:02]}  Qb2 {[%clk 0:01:03]} 0-1


[Site "https://www.chess.com"]